fUSD/lending_fUSD_20260611
["ID","MTS","AMOUNT","RATE_DAILY","PERIOD"]
[424747320,1781121057000,-150.0,0.00027397,2]
[424747319,1781121057000,-150.0,0.00027397,2]
[424747316,1781121057000,-150.0,0.00027397,2]
[424747325,1781121057000,-150.0,0.00027397,2]
[424747327,1781121057000,-150.0,0.00027397,2]
[424747318,1781121057000,-150.0,0.00027397,2]
[424747333,1781121057000,-150.0,0.00027397,2]
[424747346,1781121057000,-150.0,0.00027397,2]
[424747329,1781121057000,-150.0,0.00027397,2]
[424747334,1781121057000,-150.0,0.00027397,2]
[424747331,1781121057000,-150.0,0.00027397,2]
[424747336,1781121057000,-150.0,0.00027397,2]
[424747335,1781121057000,-150.0,0.00027397,2]
[424747332,1781121057000,-150.0,0.00027397,2]
[424747338,1781121057000,-150.0,0.00027397,2]
[424747337,1781121057000,-150.0,0.00027397,2]
[424747339,1781121057000,-150.0,0.00027397,2]
[424747341,1781121057000,-150.0,0.00027397,2]
[424747342,1781121057000,-150.0,0.00027397,2]
[424747315,1781121057000,-150.0,0.00027397,2]
[424747330,1781121057000,-150.0,0.00027397,2]
[424747317,1781121057000,-150.0,0.00027397,2]
[424747288,1781121057000,-1164.202069,0.00026384,2]
[424747326,1781121057000,-150.0,0.00027397,2]
[424747340,1781121057000,-150.0,0.00027397,2]
[424747289,1781121057000,-1164.202069,0.00026384,2]
[424747292,1781121057000,-1164.202064,0.00026384,2]
[424747301,1781121057000,-4574.67179092,0.00027111,2]
[424747290,1781121057000,-1164.202069,0.00026384,2]
[424747291,1781121057000,-1164.202069,0.00026384,2]
[424747299,1781121057000,-182.0,0.00026947,2]
[424747294,1781121057000,-9343.12,0.00026518,120]
[424747295,1781121057000,-150.0,0.00026641,2]
[424747293,1781121057000,-241.49,0.000264,7]
[424747297,1781121057000,-9343.12,0.00026764,120]
[424747298,1781121057000,-2260.4910071,0.00026788,2]
[424747314,1781121057000,-150.0,0.00027397,2]
[424747300,1781121057000,-9343.12,0.00027011,120]
[424747303,1781121057000,-217.41178917,0.000273,30]
[424747306,1781121057000,-213.6941102,0.0002734,2]
[424747304,1781121057000,-151.0,0.00027337,7]
[424747310,1781121057000,-291.0260657,0.0002734,2]
[424747308,1781121057000,-179.4272609,0.0002734,2]
[424747311,1781121057000,-150.0,0.00027397,2]
[424747309,1781121057000,-11511.5739034,0.0002734,2]
[424747307,1781121057000,-44232.6615243,0.0002734,2]
[424747302,1781121057000,-9343.12,0.00027256,120]
[424747313,1781121057000,-150.0,0.00027397,2]
[424747312,1781121057000,-150.0,0.00027397,2]
[424747305,1781121057000,-10683.3916676,0.0002734,2]
[424747296,1781121057000,-1170.68,0.00026726,7]
[424747344,1781121057000,-150.0,0.00027397,2]
[424747350,1781121057000,-150.0,0.00027397,2]
[424747347,1781121057000,-150.0,0.00027397,2]
[424747377,1781121057000,-150.0,0.00027397,2]
[424747382,1781121057000,-347.0,0.00027397,2]
[424747379,1781121057000,-500.0,0.00027397,2]
[424747380,1781121057000,-500.0,0.00027397,2]
[424747381,1781121057000,-500.0,0.00027397,2]
[424747383,1781121057000,-153.80113636,0.00027397,2]
[424747385,1781121057000,-515.39,0.00027397,2]
[424747384,1781121057000,-1500.0,0.00027397,2]
[424747386,1781121057000,-300.0,0.00027397,2]
[424747387,1781121057000,-151.0,0.00027397,2]
[424747392,1781121057000,-690.449836,0.00027397,2]
[424747391,1781121057000,-690.449836,0.00027397,2]
[424747390,1781121057000,-690.449836,0.00027397,2]
[424747394,1781121057000,-690.449836,0.00027397,2]
[424747388,1781121057000,-151.0,0.00027397,2]
[424747389,1781121057000,-280.431674,0.00027397,2]
[424747393,1781121057000,-690.449836,0.00027397,2]
[424747395,1781121057000,-690.449836,0.00027397,2]
[424747396,1781121057000,-690.449836,0.00027397,2]
[424747401,1781121057000,-690.449836,0.00027397,2]
[424747398,1781121057000,-690.449836,0.00027397,2]
[424747343,1781121057000,-150.0,0.00027397,2]
[424747397,1781121057000,-690.449836,0.00027397,2]
[424747402,1781121057000,-690.449836,0.00027397,2]
[424747400,1781121057000,-690.449836,0.00027397,2]
[424747378,1781121057000,-287.12968921,0.00027397,2]
[424747372,1781121057000,-150.0,0.00027397,2]
[424747399,1781121057000,-690.449836,0.00027397,2]
[424747376,1781121057000,-150.0,0.00027397,2]
[424747373,1781121057000,-150.0,0.00027397,2]
[424747345,1781121057000,-150.0,0.00027397,2]
[424747351,1781121057000,-150.0,0.00027397,2]
[424747354,1781121057000,-150.0,0.00027397,2]
[424747352,1781121057000,-150.0,0.00027397,2]
[424747353,1781121057000,-150.0,0.00027397,2]
[424747349,1781121057000,-150.0,0.00027397,2]
[424747356,1781121057000,-150.0,0.00027397,2]
[424747355,1781121057000,-150.0,0.00027397,2]
[424747357,1781121057000,-150.0,0.00027397,2]
[424747369,1781121057000,-150.0,0.00027397,2]
[424747358,1781121057000,-150.0,0.00027397,2]
[424747370,1781121057000,-150.0,0.00027397,2]
[424747348,1781121057000,-150.0,0.00027397,2]
[424747368,1781121057000,-150.0,0.00027397,2]
[424747360,1781121057000,-150.0,0.00027397,2]
[424747371,1781121057000,-150.0,0.00027397,2]
[424747363,1781121057000,-150.0,0.00027397,2]
[424747367,1781121057000,-150.0,0.00027397,2]
[424747366,1781121057000,-150.0,0.00027397,2]
[424747374,1781121057000,-150.0,0.00027397,2]
[424747362,1781121057000,-150.0,0.00027397,2]
[424747364,1781121057000,-150.0,0.00027397,2]
[424747361,1781121057000,-150.0,0.00027397,2]
[424747359,1781121057000,-150.0,0.00027397,2]
[424747365,1781121057000,-150.0,0.00027397,2]
[424747375,1781121057000,-150.0,0.00027397,2]
[424747430,1781121058000,-2085.97,0.000274,2]
[424747438,1781121058000,-160.54794585,0.00027459,2]
[424747432,1781121058000,-2085.97,0.000274,2]
[424747451,1781121058000,-1031.72,0.0002755,7]
[424747427,1781121058000,-164.09,0.000274,7]
[424747431,1781121058000,-2085.97,0.000274,2]
[424747429,1781121058000,-2085.97,0.000274,2]
[424747435,1781121058000,-151.24705612,0.00027459,2]
[424747433,1781121058000,-150.76327732,0.00027448,2]
[424747436,1781121058000,-179.53426733,0.00027459,2]
[424747445,1781121058000,-500.0,0.000275,7]
[424747437,1781121058000,-161.2147491,0.00027459,2]
[424747440,1781121058000,-151.07964961,0.00027459,2]
[424747441,1781121058000,-151.4848965,0.00027459,2]
[424747442,1781121058000,-180.82186542,0.00027459,2]
[424747444,1781121058000,-225.8,0.00027499,7]
[424747447,1781121058000,-1031.72,0.0002755,30]
[424747446,1781121058000,-9343.12,0.00027504,120]
[424747443,1781121058000,-154.8949609,0.00027459,2]
[424747448,1781121058000,-708.98,0.0002755,30]
[424747434,1781121058000,-180.40608669,0.00027459,2]
[424747439,1781121058000,-162.23121085,0.00027459,2]
[424747428,1781121058000,-2085.97,0.000274,2]
[424747413,1781121058000,-171.56171484,0.00027397,2]
[424747423,1781121058000,-242.50470747,0.00027397,2]
[424747404,1781121058000,-690.449836,0.00027397,2]
[424747405,1781121058000,-690.449836,0.00027397,2]
[424747403,1781121058000,-690.449836,0.00027397,2]
[424747407,1781121058000,-690.449836,0.00027397,2]
[424747406,1781121058000,-690.449836,0.00027397,2]
[424747410,1781121058000,-35285.14,0.00027397,10]
[424747411,1781121058000,-29404.29,0.00027397,10]
[424747412,1781121058000,-150.0,0.00027397,2]
[424747409,1781121058000,-690.44983167,0.00027397,2]
[424747408,1781121058000,-690.449836,0.00027397,2]
[424747414,1781121058000,-177.52560404,0.00027397,2]
[424747417,1781121058000,-182.10237434,0.00027397,2]
[424747416,1781121058000,-274.37089876,0.00027397,2]
[424747425,1781121058000,-169.93052837,0.00027397,2]
[424747418,1781121058000,-271.86373795,0.00027397,2]
[424747415,1781121058000,-176.31156427,0.00027397,2]
[424747422,1781121058000,-210.01517749,0.00027397,2]
[424747419,1781121058000,-175.91436318,0.00027397,2]
[424747424,1781121058000,-202.45029977,0.00027397,2]
[424747420,1781121058000,-167.903995,0.00027397,2]
[424747421,1781121058000,-159.78294909,0.00027397,2]
[424747426,1781121058000,-162.03871693,0.00027398,2]
[424747452,1781121058000,-1031.72,0.0002755,2]
[424747473,1781121058000,-726.94,0.00027702,30]
[424747449,1781121058000,-708.98,0.0002755,7]
[424747478,1781121058000,-726.94,0.00027733,2]
[424747480,1781121058000,-9343.12,0.0002775,120]
[424747482,1781121058000,-778.54,0.00027763,7]
[424747484,1781121058000,-1031.72,0.00027771,2]
[424747483,1781121058000,-708.98,0.00027771,2]
[424747485,1781121058000,-1830.89,0.00027771,2]
[424747487,1781121058000,-726.94,0.00027794,30]
[424747488,1781121058000,-778.54,0.00027794,30]
[424747491,1781121058000,-350.0,0.00027803,10]
[424747492,1781121058000,-726.94,0.00027824,2]
[424747486,1781121058000,-1830.9,0.00027771,2]
[424747489,1781121058000,-251.96,0.000278,30]
[424747493,1781121058000,-778.54,0.00027824,2]
[424747490,1781121058000,-187.354788,0.00027803,7]
[424747494,1781121058000,-726.94,0.00027855,7]
[424747495,1781121058000,-778.54,0.00027855,7]
[424747496,1781121058000,-726.94,0.00027885,30]
[424747500,1781121058000,-708.98,0.00027929,30]
[424747499,1781121058000,-778.54,0.00027916,2]
[424747497,1781121058000,-778.54,0.00027885,30]
[424747498,1781121058000,-726.94,0.00027916,2]
[424747481,1781121058000,-726.94,0.00027763,7]
[424747477,1781121058000,-212.0,0.00027717,2]
[424747450,1781121058000,-708.98,0.0002755,2]
[424747476,1781121058000,-151.0,0.00027703,2]
[424747456,1781121058000,-1830.9,0.0002755,2]
[424747453,1781121058000,-726.94,0.0002755,2]
[424747454,1781121058000,-778.54,0.0002755,2]
[424747455,1781121058000,-1830.9,0.0002755,7]
[424747458,1781121058000,-726.94,0.0002758,7]
[424747457,1781121058000,-1830.9,0.0002755,30]
[424747479,1781121058000,-778.54,0.00027733,2]
[424747463,1781121058000,-708.98,0.00027612,7]
[424747464,1781121058000,-1031.72,0.00027612,7]
[424747461,1781121058000,-726.94,0.00027611,30]
[424747462,1781121058000,-778.54,0.00027611,30]
[424747459,1781121058000,-778.54,0.0002758,7]
[424747465,1781121058000,-1830.9,0.00027612,7]
[424747467,1781121058000,-726.94,0.00027641,2]
[424747466,1781121058000,-254.02786009,0.00027613,2]
[424747474,1781121058000,-778.54,0.00027702,30]
[424747468,1781121058000,-778.54,0.00027641,2]
[424747470,1781121058000,-198.75,0.00027671,13]
[424747472,1781121058000,-778.54,0.00027672,7]
[424747475,1781121058000,-644.79446245,0.00027703,2]
[424747471,1781121058000,-726.94,0.00027672,7]
[424747469,1781121058000,-198.76,0.00027671,13]
[424747460,1781121058000,-500.0,0.00027604,60]
[424747532,1781121059000,-382.0,0.00028222,2]
[424747534,1781121059000,-933.0,0.00028222,2]
[424747535,1781121059000,-3643.0,0.00028222,2]
[424747533,1781121059000,-1274.0,0.00028222,2]
[424747528,1781121059000,-778.65,0.0002813,7]
[424747529,1781121059000,-198.76,0.00028219,13]
[424747530,1781121059000,-198.75,0.00028219,13]
[424747527,1781121059000,-727.12,0.0002813,7]
[424747531,1781121059000,-1358.0,0.00028222,2]
[424747537,1781121059000,-708.98,0.00028246,2]
[424747544,1781121059000,-1830.9,0.00028405,30]
[424747536,1781121059000,-9343.12,0.00028241,120]
[424747538,1781121059000,-1031.72,0.00028246,2]
[424747540,1781121059000,-416.8,0.00028267,2]
[424747542,1781121059000,-708.98,0.00028405,30]
[424747543,1781121059000,-1031.72,0.00028405,30]
[424747541,1781121059000,-170.1,0.0002831,2]
[424747546,1781121059000,-15455.17,0.00028474,3]
[424747547,1781121059000,-9343.12,0.00028491,120]
[424747545,1781121059000,-1170.68,0.00028407,7]
[424747525,1781121059000,-726.94,0.00028099,2]
[424747539,1781121059000,-1830.9,0.00028246,2]
[424747526,1781121059000,-778.54,0.00028099,2]
[424747513,1781121059000,-600.0,0.00028,2]
[424747522,1781121059000,-708.98,0.00028088,7]
[424747549,1781121059000,-1031.75,0.00028565,7]
[424747502,1781121059000,-1830.9,0.00027929,30]
[424747503,1781121059000,-726.94,0.00027946,7]
[424747504,1781121059000,-778.54,0.00027946,7]
[424747505,1781121059000,-500.0,0.00027962,120]
[424747506,1781121059000,-150.0,0.00027973,2]
[424747507,1781121059000,-726.94,0.00027977,30]
[424747508,1781121059000,-778.54,0.00027977,30]
[424747509,1781121059000,-9343.12,0.00027997,120]
[424747511,1781121059000,-284.95203121,0.00028,10]
[424747510,1781121059000,-284.95203121,0.00028,30]
[424747512,1781121059000,-241.49,0.00028,7]
[424747514,1781121059000,-215.92376884,0.00028,30]
[424747515,1781121059000,-284.95203121,0.00028,10]
[424747516,1781121059000,-726.94,0.00028007,2]
[424747520,1781121059000,-726.94,0.00028068,30]
[424747517,1781121059000,-778.54,0.00028007,2]
[424747518,1781121059000,-726.94,0.00028038,7]
[424747519,1781121059000,-778.54,0.00028038,7]
[424747521,1781121059000,-778.54,0.00028068,30]
[424747523,1781121059000,-1031.72,0.00028088,7]
[424747524,1781121059000,-1830.9,0.00028088,7]
[424747548,1781121059000,-709.0,0.00028565,7]
[424747501,1781121059000,-1031.72,0.00027929,30]
[424747551,1781121059000,-343.12342968,0.00028692,2]
[424747579,1781121059000,-153.80113636,0.00028766,2]
[424747576,1781121059000,-302.969793,0.00028755,2]
[424747580,1781121059000,-198.76,0.00028767,13]
[424747581,1781121059000,-198.75,0.00028767,13]
[424747582,1781121059000,-150.0,0.00028767,2]
[424747584,1781121059000,-200.0,0.000289,2]
[424747587,1781121059000,-186.24909246,0.00028971,2]
[424747585,1781121059000,-341.0,0.000289,2]
[424747591,1781121059000,-500.0,0.00029,2]
[424747588,1781121059000,-167.3033954,0.00028971,2]
[424747590,1781121059000,-164.09,0.00029,7]
[424747586,1781121059000,-571.0,0.000289,2]
[424747583,1781121059000,-200.0,0.000289,2]
[424747589,1781121059000,-9343.12,0.00028981,120]
[424747592,1781121059000,-500.0,0.00029,2]
[424747594,1781121059000,-500.0,0.00029,2]
[424747596,1781121059000,-500.0,0.00029,2]
[424747595,1781121059000,-500.0,0.00029,2]
[424747593,1781121059000,-500.0,0.00029,2]
[424747598,1781121059000,-500.0,0.00029,2]
[424747550,1781121059000,-350.0,0.00028609,11]
[424747574,1781121059000,-324.46242171,0.00028755,2]
[424747575,1781121059000,-302.15929923,0.00028755,2]
[424747597,1781121059000,-500.0,0.00029,2]
[424747577,1781121059000,-361.64373084,0.00028755,2]
[424747552,1781121059000,-355.05120808,0.00028692,2]
[424747553,1781121059000,-352.62312854,0.00028692,2]
[424747556,1781121059000,-543.72747591,0.00028692,2]
[424747560,1781121059000,-485.00941493,0.00028692,2]
[424747559,1781121059000,-420.03035497,0.00028692,2]
[424747558,1781121059000,-335.80799001,0.00028692,2]
[424747555,1781121059000,-364.20474867,0.00028692,2]
[424747554,1781121059000,-548.74179751,0.00028692,2]
[424747562,1781121059000,-319.56589818,0.00028692,2]
[424747561,1781121059000,-404.90059954,0.00028692,2]
[424747557,1781121059000,-351.82872635,0.00028692,2]
[424747565,1781121059000,-152.0,0.00028736,3]
[424747573,1781121059000,-321.0958917,0.00028755,2]
[424747572,1781121059000,-322.4294982,0.00028755,2]
[424747563,1781121059000,-339.86105674,0.00028692,2]
[424747569,1781121059000,-360.81217337,0.00028755,2]
[424747571,1781121059000,-359.06853467,0.00028755,2]
[424747578,1781121059000,-309.7899218,0.00028755,2]
[424747570,1781121059000,-302.49411224,0.00028755,2]
[424747567,1781121059000,-301.52655465,0.00028745,2]
[424747568,1781121059000,-3600.78,0.00028745,2]
[424747564,1781121059000,-324.07743386,0.00028693,2]
[424747566,1781121059000,-9343.12,0.00028737,120]
[424747629,1781121060000,-1000.0,0.00029,2]
[424747624,1781121060000,-324.1118776,0.00029,2]
[424747625,1781121060000,-10000.0,0.00029,2]
[424747626,1781121060000,-6489.81,0.00029,2]
[424747630,1781121060000,-1000.0,0.00029,2]
[424747631,1781121060000,-1000.0,0.00029,2]
[424747627,1781121060000,-868.05,0.00029,2]
[424747623,1781121060000,-500.0,0.00029,2]
[424747635,1781121060000,-442.76,0.00029,2]
[424747632,1781121060000,-2000.0,0.00029,2]
[424747633,1781121060000,-2000.0,0.00029,2]
[424747634,1781121060000,-2000.0,0.00029,2]
[424747639,1781121060000,-482.23,0.00029,2]
[424747640,1781121060000,-419.61,0.00029,2]
[424747642,1781121060000,-500.0,0.00029,2]
[424747637,1781121060000,-459.5,0.00029,2]
[424747643,1781121060000,-527.39395721,0.00029,2]
[424747621,1781121060000,-500.0,0.00029,2]
[424747628,1781121060000,-1000.0,0.00029,2]
[424747619,1781121060000,-500.0,0.00029,2]
[424747606,1781121060000,-1767.07806041,0.00029,7]
[424747616,1781121060000,-162.7,0.00029,2]
[424747641,1781121060000,-500.0,0.00029,2]
[424747599,1781121060000,-500.0,0.00029,2]
[424747600,1781121060000,-500.0,0.00029,2]
[424747601,1781121060000,-500.0,0.00029,2]
[424747602,1781121060000,-500.0,0.00029,2]
[424747605,1781121060000,-216.96,0.00029,2]
[424747604,1781121060000,-525.0,0.00029,7]
[424747612,1781121060000,-246.84,0.00029,2]
[424747608,1781121060000,-500.0,0.00029,2]
[424747620,1781121060000,-500.0,0.00029,2]
[424747603,1781121060000,-500.0,0.00029,2]
[424747610,1781121060000,-500.0,0.00029,2]
[424747607,1781121060000,-500.0,0.00029,2]
[424747609,1781121060000,-500.0,0.00029,2]
[424747622,1781121060000,-500.0,0.00029,2]
[424747613,1781121060000,-1050.0,0.00029,2]
[424747614,1781121060000,-2323.11782311,0.00029,2]
[424747617,1781121060000,-321.11,0.00029,120]
[424747615,1781121060000,-151.0,0.00029,2]
[424747618,1781121060000,-500.0,0.00029,2]
[424747611,1781121060000,-500.0,0.00029,2]
[424747636,1781121060000,-416.46,0.00029,2]
[424747638,1781121060000,-459.12,0.00029,2]
[424747646,1781121060000,-159.62,0.00029162,14]
[424747669,1781121060000,-1011.8973922,0.000295,5]
[424747671,1781121060000,-2264.5745631,0.000295,5]
[424747672,1781121060000,-2496.49178065,0.000295,5]
[424747670,1781121060000,-1011.8973922,0.000295,5]
[424747675,1781121060000,-3981.0861691,0.000295,5]
[424747674,1781121060000,-3387.95174889,0.000295,5]
[424747678,1781121060000,-1367.8373868,0.000295,5]
[424747679,1781121060000,-630.08862553,0.000295,5]
[424747676,1781121060000,-2740.54405639,0.000295,5]
[424747681,1781121060000,-1522.33019981,0.000295,5]
[424747684,1781121060000,-500.1,0.00029524,2]
[424747677,1781121060000,-2969.20077361,0.000295,5]
[424747682,1781121060000,-500.1,0.00029524,2]
[424747683,1781121060000,-500.1,0.00029524,2]
[424747685,1781121060000,-500.1,0.00029524,2]
[424747686,1781121060000,-500.1,0.00029524,2]
[424747687,1781121060000,-563.27484258,0.00029524,2]
[424747688,1781121060000,-500.1,0.00029524,2]
[424747645,1781121060000,-1540.87,0.000291,4]
[424747668,1781121060000,-1137.63610221,0.000295,2]
[424747667,1781121060000,-265.0,0.00029449,2]
[424747680,1781121060000,-1522.33019981,0.000295,5]
[424747666,1781121060000,-1650.0,0.00029449,10]
[424747647,1781121060000,-159.62,0.00029162,14]
[424747665,1781121060000,-150.0,0.00029372,2]
[424747644,1781121060000,-500.0,0.00029,2]
[424747648,1781121060000,-159.62,0.00029162,14]
[424747652,1781121060000,-990.0,0.00029201,30]
[424747649,1781121060000,-309.0,0.00029201,30]
[424747651,1781121060000,-274.0,0.00029201,30]
[424747654,1781121060000,-309.0,0.00029201,30]
[424747653,1781121060000,-1333.0,0.00029201,30]
[424747658,1781121060000,-9343.28,0.00029229,120]
[424747650,1781121060000,-319.0,0.00029201,30]
[424747662,1781121060000,-515.0,0.0002923,30]
[424747660,1781121060000,-1025.0,0.0002923,30]
[424747661,1781121060000,-293.0,0.0002923,30]
[424747655,1781121060000,-217.0,0.00029201,30]
[424747656,1781121060000,-869.0,0.00029201,30]
[424747657,1781121060000,-321.0,0.00029201,30]
[424747663,1781121060000,-288.0,0.0002923,30]
[424747659,1781121060000,-266.0,0.0002923,30]
[424747664,1781121060000,-500.0,0.00029248,60]
[424747673,1781121060000,-2502.5593097,0.000295,5]
[424747717,1781121061000,-187.00532554,0.00029579,2]
[424747731,1781121061000,-481.64383756,0.00029619,2]
[424747728,1781121061000,-538.602802,0.00029619,2]
[424747727,1781121061000,-453.74116836,0.00029619,2]
[424747725,1781121061000,-541.21826006,0.00029619,2]
[424747722,1781121061000,-164.10870769,0.00029609,2]
[424747723,1781121061000,-181.32982294,0.00029609,2]
[424747721,1781121061000,-169.58866854,0.00029609,2]
[424747718,1781121061000,-171.3763261,0.00029609,2]
[424747729,1781121061000,-483.6442473,0.00029619,2]
[424747724,1781121061000,-452.28983197,0.00029609,2]
[424747735,1781121061000,-453.23894884,0.00029619,2]
[424747747,1781121061000,-194.51230655,0.00029619,2]
[424747734,1781121061000,-185.2604125,0.00029619,2]
[424747726,1781121061000,-258.63624667,0.00029619,2]
[424747730,1781121061000,-233.97498709,0.00029619,2]
[424747733,1781121061000,-275.66086007,0.00029619,2]
[424747736,1781121061000,-240.79250091,0.00029619,2]
[424747738,1781121061000,-234.65695278,0.00029619,2]
[424747746,1781121061000,-464.6848827,0.00029619,2]
[424747737,1781121061000,-205.58962839,0.00029619,2]
[424747739,1781121061000,-185.40012574,0.00029619,2]
[424747742,1781121061000,-166.82082127,0.00029619,2]
[424747719,1781121061000,-286.75068551,0.00029609,2]
[424747732,1781121061000,-486.69363256,0.00029619,2]
[424747720,1781121061000,-239.26414617,0.00029609,2]
[424747696,1781121061000,-194.18605571,0.00029555,2]
[424747714,1781121061000,-479.34884727,0.00029555,2]
[424747689,1781121061000,-500.1,0.00029524,2]
[424747690,1781121061000,-500.1,0.00029524,2]
[424747691,1781121061000,-500.1,0.00029524,2]
[424747693,1781121061000,-514.68514451,0.00029555,2]
[424747694,1781121061000,-214.77983455,0.00029555,2]
[424747695,1781121061000,-532.57681212,0.00029555,2]
[424747697,1781121061000,-528.93469281,0.00029555,2]
[424747701,1781121061000,-220.93954072,0.00029555,2]
[424747692,1781121061000,-500.1,0.00029524,2]
[424747702,1781121061000,-527.74308953,0.00029555,2]
[424747698,1781121061000,-823.11269627,0.00029555,2]
[424747699,1781121061000,-546.30712301,0.00029555,2]
[424747700,1781121061000,-815.59121386,0.00029555,2]
[424747703,1781121061000,-230.75552074,0.00029555,2]
[424747704,1781121061000,-503.71198501,0.00029555,2]
[424747711,1781121061000,-259.49884754,0.00029555,2]
[424747707,1781121061000,-205.56677579,0.00029555,2]
[424747712,1781121061000,-607.35089931,0.00029555,2]
[424747708,1781121061000,-630.04553246,0.00029555,2]
[424747710,1781121061000,-727.5141224,0.00029555,2]
[424747713,1781121061000,-241.43704184,0.00029555,2]
[424747709,1781121061000,-216.37775023,0.00029555,2]
[424747705,1781121061000,-245.69643589,0.00029555,2]
[424747706,1781121061000,-154.30688643,0.00029555,2]
[424747715,1781121061000,-509.79158511,0.00029555,2]
[424747716,1781121061000,-486.11615078,0.00029555,2]
[424747741,1781121061000,-454.45468949,0.00029619,2]
[424747740,1781121061000,-217.93422179,0.00029619,2]
[424747743,1781121061000,-230.67104731,0.00029619,2]
[424747779,1781121061000,-151.0,0.00030122,2]
[424747781,1781121061000,-686.24685935,0.0003013,2]
[424747777,1781121061000,-151.6,0.00030122,2]
[424747784,1781121061000,-710.10241617,0.0003013,2]
[424747783,1781121061000,-396.69558007,0.0003013,2]
[424747780,1781121061000,-3210.89,0.00030125,2]
[424747778,1781121061000,-151.0,0.00030122,2]
[424747782,1781121061000,-429.5596691,0.0003013,2]
[424747786,1781121061000,-315.98830037,0.0003013,2]
[424747785,1781121061000,-272.42012063,0.0003013,2]
[424747796,1781121061000,-265.6924333,0.0003013,2]
[424747787,1781121061000,-388.37211142,0.0003013,2]
[424747789,1781121061000,-1097.48359502,0.0003013,2]
[424747790,1781121061000,-169.25841594,0.0003013,2]
[424747788,1781121061000,-705.24625709,0.0003013,2]
[424747792,1781121061000,-728.40949734,0.0003013,2]
[424747794,1781121061000,-233.51984573,0.0003013,2]
[424747791,1781121061000,-382.22948702,0.0003013,2]
[424747795,1781121061000,-1087.45495182,0.0003013,2]
[424747793,1781121061000,-214.4419437,0.0003013,2]
[424747797,1781121061000,-441.87908144,0.0003013,2]
[424747799,1781121061000,-461.51104148,0.0003013,2]
[424747800,1781121061000,-201.82217861,0.0003013,2]
[424747798,1781121061000,-703.6574527,0.0003013,2]
[424747801,1781121061000,-385.03268529,0.0003013,2]
[424747776,1781121061000,-866.2920635,0.00030117,2]
[424747774,1781121061000,-697.92354562,0.00030039,7]
[424747744,1781121061000,-542.46559626,0.00029619,2]
[424747773,1781121061000,-73872.11693362,0.00030039,7]
[424747745,1781121061000,-259.94548218,0.00029619,2]
[424747749,1781121061000,-225.21297495,0.00029619,2]
[424747757,1781121061000,-369.24803815,0.0003,30]
[424747758,1781121061000,-151.0,0.0003,2]
[424747748,1781121061000,-238.04654023,0.00029619,2]
[424747750,1781121061000,-241.2633759,0.00029619,2]
[424747753,1781121061000,-15000.0,0.0002974,3]
[424747775,1781121061000,-1170.68,0.00030089,7]
[424747751,1781121061000,-293.22826481,0.00029642,2]
[424747759,1781121061000,-151.0,0.0003,2]
[424747754,1781121061000,-481.43898013,0.000299,2]
[424747755,1781121061000,-481.43898013,0.000299,2]
[424747756,1781121061000,-151.0,0.00029997,7]
[424747752,1781121061000,-253.04988814,0.00029644,2]
[424747771,1781121061000,-1524.980926,0.0003,2]
[424747766,1781121061000,-160.0,0.0003,120]
[424747765,1781121061000,-241.49,0.0003,7]
[424747763,1781121061000,-279.69709038,0.0003,7]